Cogmind - Beta 17 *** ADVENTURER MODE // 2026.06.27 @ 22:53:31 Player: Iris Result: Destroyed by Y-45 Defender with Beam Rifle Performance ------------- Evolutions (1) 500 Regions Visited (2) 400 Robots Destroyed (26) 130 Value Destroyed (499) 499 Prototype IDs (0) 0 Alien Tech Used (0) 0 Bonus (0) 0 TOTAL SCORE: 1529 Bonus ------- None Cogmind --------- Core Integrity 0/400 Matter 300/300 Energy 99/100 System Corruption 0% Temperature Cool (9) Movement Core (700) Ox13 Location -9/Materials Parts ------- > --- POWER (2) -------- (None) > --- PROPULSION (2) --- (None) > --- UTILITY (2) ------ Large Storage Unit Large Storage Unit > --- WEAPON (3) ------- (None) > --- INVENTORY (15) --- Large Battery (200) Small Matter Pod (50) Tractor Beam Peak State ------------ > --- POWER ------------ (None) > --- PROPULSION ------- Wheel Flight Unit > --- UTILITY ---------- Large Storage Unit Large Storage Unit > --- WEAPON ----------- EM Pulse Gun Particle Gun Maul > --- INVENTORY -------- Wheel Large Battery Small Matter Pod Light Assault Rifle Welding Torch [Rating: 9] Favorites ----------- Power Light Ion Engine Engine Light Ion Engine Propulsion Wheel Wheel Wheel Flight Unit Flight Unit Utility Large Storage Unit Device Terrain Scanner Storage Large Storage Unit Protection Light Armor Plating Weapon Particle Gun Energy Gun Particle Gun Ballistic Gun Light Assault Rifle Special Weapon Welding Torch Impact Weapon Maul Build | -11 -10 -9 ------- Run | Yrd Mat Mat Slots Evolved 2 | . . 2 Power 1 | . . 1 Propulsion . | . . . Utility . | . . . Weapon 1 | . . 1 Parts Attached 18 | 5 6 7 Power 2 | 1 . 1 Engine 2 | 1 . 1 Core . | . . . Reactor . | . . . Propulsion 5 | 2 1 2 Treads . | . . . Leg . | . . . Wheel 3 | 2 . 1 Hover . | . . . Flight 2 | . 1 1 Utility 4 | . 3 1 Device 1 | . 1 . Storage 2 | . 2 . Processor . | . . . Hackware . | . . . Protection 1 | . . 1 Artifact . | . . . Weapon 7 | 2 2 3 Energy Gun 3 | . 1 2 Energy Cannon . | . . . Ballistic Gun 2 | 2 . . Ballistic Cannon . | . . . Launcher . | . . . Special Weapon 1 | . . 1 Impact Weapon 1 | . 1 . Slashing Weapon . | . . . Piercing Weapon . | . . . Special Melee Weapon . | . . . Unidentified Prototypes . | . . . Parts Lost 12 | . 1 11 Power 2 | . 1 1 Propulsion 5 | . . 5 Utility 1 | . . 1 Weapon 4 | . . 4 Highest Loss Streak 5 | . 1 5 To Critical Strikes . | . . . Average Backups 3 | . 3 4 Power . | . . . Propulsion . | . . . Utility 2 | . 1 3 Weapon . | . . . Tool/Special . | . . . Unused Backups 3 | . . 3 Power . | . . . Propulsion . | . . . Utility 3 | . . 3 Weapon . | . . . Tool/Special . | . . . Average Slot Usage (%) 68 | . 84 59 Engine 2 | . 6 . Wheel 11 | . 19 6 Flight 4 | . 3 5 Storage 20 | . 24 18 Protection 2 | . . 3 Energy Gun 15 | . 11 16 Ballistic Gun 6 | . 10 4 Special Weapon 2 | . . 3 Impact Weapon 2 | . 5 1 Peak Build Rating 9 | 5 7 9 Average Rating 6 | 2 6 6 On Entrance 4 | . 5 7 Avg Prop Armor Cover (%) 4 | . 8 4 Naked Turns . | . . . Heaviest Build 49 | 6 46 49 Greatest Support 20 | 20 20 10 Greatest Overweight (x) 13 | . 11 13 Average Overweight (x) 3 | . 2 6 Largest Inventory Capacity 15 | 5 15 15 Average Capacity 14 | 5 14 15 Most Carried 7 | 3 7 6 Average Carried 3 | . 3 4 Final Capacity 15 | 5 15 15 Final Carried 6 | 1 6 3 Class Distribution -------------------- 77% | Mutant 22% | Gunner Dominant Class ---------------- Mutant | -10/Materials Mutant | -9/Materials Resources | -11 -10 -9 ----------- Run | Yrd Mat Mat Matter Collected 484 | 258 . 226 Remotely . | . . . Salvage Created 628 | 40 90 498 Parts 45 | . 10 35 Haulers Intercepted . | . . . Recyclers Shooed . | . . . Parts Field Recycled . | . . . Retrieved Matter . | . . . Parts Self-Destructed . | . . . Prevented . | . . . Parts Restored . | . . . Kills | -11 -10 -9 ------- Run | Yrd Mat Mat Combat Hostiles Destroyed 23 | 1 5 17 Guns 23 | 1 5 17 Classes Destroyed 5 | 1 1 3 Worker 1 | . . 1 Watcher 2 | . . 2 Swarmer 15 | . 5 10 Grunt 4 | 1 . 3 Sentry 4 | . . 4 Best Kill Streak 6 | 1 3 6 Combat Bots Only 5 | 1 3 5 Max Kills in Single Turn 1 | 1 1 1 Gunslinging . | . . . Exploded . | . . . Melee . | . . . Uniques/NPCs Destroyed . | . . . Combat | -11 -10 -9 -------- Run | Yrd Mat Mat Hostile Shots Fired 233 | 1 22 210 Missed 67 | 1 3 63 Hits 166 | . 19 147 Projectile 166 | . 19 147 Critical Strikes 6 | . . 6 Damage Taken 1251 | . 110 1141 Core 421 | . 13 408 Absorbed by Shields . | . . . Ignored by Resistances 391 | . 38 353 Core Remaining (%) 97 | 100 94 . Volleys Fired 65 | 2 9 54 Largest 3 | 2 2 3 Hottest 150 | 40 60 150 Shots Fired 111 | 4 17 90 Gun 109 | 4 17 88 Cannon . | . . . Launcher . | . . . Special 2 | . . 2 Kinetic 22 | 4 8 10 Thermal 73 | . . 73 Explosive . | . . . Electromagnetic 16 | . 9 7 Robot Hit Streak 16 | 4 5 16 Robot Miss Streak 3 | . 1 3 Penetration Max . | . . . Secondary Targets 6 | . 2 4 Max Gunslinging Chain 1 | . 1 1 Shots Hit Robots 76 | 4 11 61 Core Hits 37 | 2 7 28 Critical Kills . | . . . Critical Parts Destroyed . | . . . Critical Strikes 2 | . 1 1 Burn 1 | . . 1 Corrupt 1 | . 1 . Melee Attacks . | . . . Impact . | . . . Slashing . | . . . Piercing . | . . . Sneak Attacks . | . . . Combat Hostiles . | . . . Follow-up Attacks . | . . . Damage Inflicted 1108 | 42 107 959 Guns 1102 | 42 107 953 Cannons . | . . . Explosions . | . . . Melee . | . . . Ramming 3 | . . 3 Kinetic 125 | 42 29 54 Thermal 847 | . . 847 Explosive . | . . . Electromagnetic 133 | . 78 55 Impact . | . . . Slashing . | . . . Piercing . | . . . Highest Corruption . | . . . Average Corruption . | . . . Corruption Purged . | . . . Corruption Blocked . | . . . Overload Shots . | . . . Overflow Damage . | . . . Projectiles . | . . . Explosions . | . . . Melee . | . . . Knockbacks . | . . . Impact . | . . . Kinetic . | . . . Secondary . | . . . Self-Inflicted Damage . | . . . Shots . | . . . Rammed 3 | . . 3 Targets Rammed 3 | . . 3 Kicked . | . . . Crushed . | . . . Highest Temperature 288 | . 20 288 Average Temperature 83 | . 14 89 Received Heat Transfer 342 | . . 342 Effects 1 | . . 1 Energy Bleed 1 | . . 1 Siege Activations . | . . . Martial Activations . | . . . Shielding Activations . | . . . Robots Disrupted . | . . . Combat Hostiles . | . . . Robots Corrupted . | . . . Combat Hostiles . | . . . Parts Fried . | . . . Impact Corruptions . | . . . Robots Melted . | . . . Combat Hostiles . | . . . Parts Melted 4 | . . 4 Heat Transferred 2060 | . . 2060 Parts Sabotaged . | . . . Parts Stolen . | . . . Parts Stripped . | . . . Power Chain Reactions . | . . . Alert | -11 -10 -9 ------- Run | Yrd Mat Mat Maximum Alert Level . | . . . Low Security (%) 100 | 100 100 100 Level 1 . | . . . Level 2 . | . . . Level 3 . | . . . Level 4 . | . . . Level 5 . | . . . High Security . | . . . Max Security . | . . . Peak Influence 118 | 20 80 118 Initial 5 | . 5 . Average 23 | 1 14 29 Influence Increases 610 | 20 115 475 Destroy 0b10 Robot/C 460 | 20 100 340 Destroy 0b10 Robot/NC 15 | . . 15 Destroy Leader 84 | . 10 74 Successful Hack 5 | . 5 . Destroy Structure 1 | . . 1 Lose Combat Pursuer 45 | . . 45 Influence Decreases 542 | 10 125 407 Entered New Map 5 | . 5 . Time Decay 417 | 10 110 297 Lost Part 120 | . 10 110 Squads Dispatched 2 | . . 2 Investigation . | . . . Extermination . | . . . Reinforcement 2 | . . 2 Assault . | . . . Garrison . | . . . Intercept . | . . . Searches Triggered . | . . . Construction Impeded . | . . . Haulers Reinforced . | . . . Active Scanning Responses . | . . . Cargo Convoy Interrupts . | . . . Stealth | -11 -10 -9 --------- Run | Yrd Mat Mat Distress Signals 4 | . 1 3 Communications Jammed . | . . . Distress Signals . | . . . Times Spotted 41 | 1 9 31 Peak Tracking Total 6 | 1 4 6 Tactical Retreats 2 | . . 2 Traps | -11 -10 -9 ------- Run | Yrd Mat Mat Traps Triggered 2 | . 1 1 Indirectly . | . . . Trap Hack Attempts . | . . . Triggered . | . . . Disarmed . | . . . Reprogrammed . | . . . Reused . | . . . Traps Extracted . | . . . Installed . | . . . Triggered . | . . . Machines | -11 -10 -9 ---------- Run | Yrd Mat Mat Machines Disabled . | . . . Max in Single Turn . | . . . Machines Repaired . | . . . Machines Dismantled . | . . . Machines Sabotaged . | . . . Overloaded Fab Kills . | . . . Hacking | -11 -10 -9 --------- Run | Yrd Mat Mat Machines Accessed 3 | . 2 1 Terminals 3 | . 2 1 Fabricators . | . . . Repair Stations . | . . . Recycling Units . | . . . Scanalyzers . | . . . Garrison Access . | . . . Total Hacks 8 | . 6 2 Successful 7 | . 6 1 Failed 1 | . . 1 Catastrophic . | . . . Database Lockouts . | . . . Manual . | . . . Terminals 8 | . 6 2 Fabricators . | . . . Repair Stations . | . . . Recycling Units . | . . . Scanalyzers . | . . . Garrison Access . | . . . Terminal Hacks 7 | . 6 1 Record 4 | . 3 1 Alert Level 1 | . 1 . Hauler Manifests 1 | . 1 . Registered Prototypes 1 | . 1 . Fabricator Hacks . | . . . Repair Station Hacks . | . . . Recycling Unit Hacks . | . . . Scanalyzer . | . . . Garrison Access Hacks . | . . . Unauthorized Hacks . | . . . Terminals . | . . . Fabricators . | . . . Repair Stations . | . . . Recycling Units . | . . . Scanalyzers . | . . . Garrison Access . | . . . Data Cores Recovered . | . . . Used . | . . . Hacking Detections 3 | . 2 1 Full Trace Events 1 | . 1 . Feedback Events . | . . . Feedback Blocked . | . . . Robot Schematics Acquired . | . . . Robots Built . | . . . Authchips . | . . . Time . | . . . Total Robot Build Rating . | . . . Part Schematics Acquired . | . . . Parts Built . | . . . Authchips . | . . . Time . | . . . Total Part Build Rating . | . . . Part Studies Acquired . | . . . Parts Repaired . | . . . Time . | . . . Parts Recycled . | . . . Recycled Matter . | . . . Retrieved Matter . | . . . Retrieved Components . | . . . Parts Scanalyzed . | . . . Part Schematics Acquired . | . . . Parts Damaged . | . . . Bothacking | -11 -10 -9 ------------ Run | Yrd Mat Mat Used RIF Installer . | . . . Robots Hacked . | . . . Non-combat . | . . . Combat . | . . . Robot Hacks Applied . | . . . Relay Couplers Released . | . . . Fabnet Peak Effective % . | . . . Robots Rewired . | . . . Allies Hacked . | . . . Hacks Repelled . | . . . Allies | -11 -10 -9 -------- Run | Yrd Mat Mat Total Allies . | . . . Largest Group . | . . . Highest-Rated Group . | . . . Highest-Rated Ally . | . . . Total Orders . | . . . Ally Attacks . | . . . Total Damage . | . . . Kills . | . . . Allies Corrupted . | . . . Allies Melted . | . . . Intel | -11 -10 -9 ------- Run | Yrd Mat Mat Active Infowar (turns) 45 | . 45 . Terrain 45 | . 45 . Robot Analysis Total . | . . . Derelict Logs Recovered . | . . . Drone Launches . | . . . Drone Recoveries . | . . . Exploration | -11 -10 -9 ------------- Run | Yrd Mat Mat Turns Passed 1868 | 65 626 1177 Spaces Moved 774 | 71 395 308 Core 108 | 26 . 82 Treads . | . . . Legs . | . . . Wheels 614 | 45 378 191 Hover . | . . . Flight 52 | . 17 35 Fastest Speed 50 | 50 80 140 Average Speed 212 | 69 149 325 Slowest Speed 925 | 80 925 925 Overloaded Moves . | . . . Propulsion Burnouts . | . . . Robots Hopped . | . . . Potential Cave-ins . | . . . Cave-ins Triggered . | . . . Exploration Rate (%) 26 | 5 44 29 Regions Visited 2 Branch Regions . Pre-discovered Areas . | . . . Known Exits Taken . | . . . Unknown Exits Taken 2 | 1 1 . Scrap Searched . | . . . Spaces Dug . | . . . Terrain Destroyed . | . . . Melee . | . . . Projectile . | . . . AOE . | . . . Terrain Rammed . | . . . Walls Destroyed . | . . . Machines Disabled . | . . . Actions | -11 -10 -9 --------- Run | Yrd Mat Mat Total 893 | 83 423 387 Wait 2 | . . 2 Move 772 | 70 394 308 Hop . | . . . Pick Up 22 | 6 10 6 Fast Attach . | . . . Attach 23 | 5 7 11 Detach 4 | . 2 2 Swap 2 | . 1 1 Drop . | . . . Fire 65 | 2 9 54 Melee . | . . . Ram 3 | . . 3 Kick . | . . . Crush . | . . . Escape Stasis . | . . . Rewire . | . . . Trap . | . . . Miscellaneous . | . . . Route ------- -11/Scrapyard -10/Materials (discovered 2 exits: *Mat / [*Min]) -9/Materials History --------- Turn | Location | Event 2 | -11/Scrapyard | Met Revision 17 51 | -11/Scrapyard | Discovered new exit (range 8) 66 | -11/Scrapyard | Entered Materials 310 | -10/Materials | Build established: Mutant 330 | -10/Materials | Discovered new exit (range 16) 618 | -10/Materials | Discovered new exit (range 7) 692 | -10/Materials | Entered another Materials area 692 | -9/Materials | Evolved 2 slots: Power x1, Weapon x1 1116 | -9/Materials | Build established: Gunner 1542 | -9/Materials | Build established: Mutant 1795 | -9/Materials | Core integrity fell below 50% 1852 | -9/Materials | Core integrity fell below 20% 1869 | -9/Materials | Destroyed by Y-45 Defender with Beam Rifle Last Messages --------------- 01788_ K-01 Serf cleans the Purification Channel. 01791_ Particle Gun destroyed. 01797_ Critical hit (Burn: +37). 01799_ R-06 Scavenger collects Flight Unit. 01818_ S-10 Pest destroyed. 01821_ Lgt. Ion Engine destroyed. 01825_ K-01 Serf collects debris. 01826_ Lgt. Ion Engine melted. 01826_ S-10 Pest destroyed. 01832_ K-01 Serf collects debris. 01833_ Wheel destroyed. 01835_ K-01 Serf collects debris. 01835_ Particle Gun destroyed. 01836_ Critical hit (Burn: +37). 01843_ Acquired Flight Unit. 01854_ Slammed into Y-45 Defender. 01859_ Flight Unit destroyed. 01861_ S-10 Pest destroyed. 01863_ Critical hit (Burn: +37). 01865_ K-01 Serf collects debris. Map ----- +----------------------------------------------------+ | ?????????????????????????????????????????????????? | | ?????????????????????????????????????????????????? | | ?????????????????????????????????????????????????? | | ?????????????????????????????????????????????????? | | ?????????????????????????????????????????????????? | | ?????????????????????????????????????????????????? | | ?????????????????????????????????????????????????? | | ?????????????????????????????????????????????????? | | ?????????????????????????????????????????????????? | | ?????????????????????????????????? ????????????? | | ?????????????????????????????????# ???????????? | | ?????????????????????????????????# #???????????? | | ?????????????????????????????????# #???????????? | | ?????????????????????????????????+ +???????????? | | ?????????????????????????????????# #???????????? | | ?????????????????????????????????#% #???????????? | | ?????????????????????????????????# #???????????? | | ???????????????????????########??# #???????????? | | ???????????????????????# ## #???????????? | | ???????????????????????# """ ## #???????????? | | ???????????????????????# """ ## ##???######## | | ???????????????????????# = """ # ##### % % | | ???????????????????????# # % % | | ???????????????????????# s""" + T % * | | ???????????????????????# """ #[ ! | | ???????????????????????# @%=""" # ##### | | ???????????????????????# *%= Y ## ####### | | ???????????????????????##Y######## # # | | ???????????????????????# % # + | | ???????????????????????# + " # ### | | ?????????????????# # """ + #?? | | ??????????????[[ ######+#####+###### "" #####?? | | ??????????????????????? ??????????# """ #?????? | | ????????????????????? """ ??????????# "" #?????? | | ???????????????????? "R" ??????????# """ / ????? | | ???????????????????## " " ??????????# """ ##????? | | ????????????????????? ??????????# """ #?????? | | ?????????????????????? ??????????# " #?????? | | ??????????????????????? ] ?????????# #?????? | | ??????????????????????? ?????????#######?????? | | ???????????????????????#+##+?????????????????????? | | ???????????????????????# ?? ?????????????????????? | | ??????????????????????? ??? ?????????????????????? | | ??????????????????????????? ?????????????????????? | | ?????????????????????????????????????????????????? | | ?????????????????????????????????????????????????? | | ?????????????????????????????????????????????????? | | ?????????????????????????????????????????????????? | | ?????????????????????????????????????????????????? | | ?????????????????????????????????????????????????? | +----------------------------------------------------+ Best States ------------- Heat Dissipation 28 Energy Generation 10 Energy Capacity 125 Matter Stores 300 Matter Capacity 300 Sight Range 16 Terrain Scan Range 14 Terrain Scan Density 10 Armor Coverage 150 Resistance: KI 20 Resistance: TH 20 Resistance: EX 20 Resistance: EM 20 Resistance: I 20 Resistance: S 20 Resistance: P 20 Evasion (%) 50 Offensive Hacking 10 Item Schematics ----------------- None Robot Schematics ------------------ None Fabricated ------------ Nothing Repaired ---------- Nothing Studied --------- None Alien Tech Used ----------------- None Achievements -------------- None Challenges ------------ None Game ------ Seed DirtyProcessingInitializer Manual? 0 Play Time 00:16:58 Cumulative 28.4 hours Start 2026.06.27 @ 22:35:25 End 2026.06.27 @ 22:53:31 Sessions 1 Manual Loads 0 Difficulty Adventurer Special Mode None Game No. 65 Rogue 40 Adventurer 25 Explorer 0 Win Type - Total 0 Types 0/0/0/0/0/0/0/0/0/0 Lore% 13 Gallery% 27 Achievement% 17 Wizard Run 0 Options --------- Layout 1 ASCII 0 Keyboard 0 Movement Mouse Keybinds 0 Fullscreen 0 Font 28/SmallcapsGlow Map View 77x35 Zoom Use 0% Tactical HUD 1 Map Filters NONE Filters NONE Steam X RUN: 0bcea7b6-810a-49d8-9a18-1151956cb14c